fUST/lending_fUST_20250615
["ID","MTS","AMOUNT","RATE_DAILY","PERIOD"]
[365817483,1749935436421,-440.0,0.00022191,4]
[365817484,1749935436429,-1151.42,0.00022191,4]
[365817485,1749935436438,-460.0,0.00022191,4]
[365817486,1749935436448,-460.0,0.00022191,4]
[365817487,1749935436457,-1606.54,0.00022191,4]
[365817488,1749935436467,-460.0,0.00022191,4]
[365817489,1749935436476,-460.0,0.00022191,4]
[365817490,1749935436485,-460.0,0.00022191,4]
[365817491,1749935436495,-460.0,0.00022191,4]
[365817492,1749935436504,-460.0,0.00022191,4]
[365817493,1749935436514,-420.0,0.00022191,4]
[365817494,1749935436523,-460.0,0.00022191,4]
[365817495,1749935436532,-1137.27,0.00022191,4]
[365817496,1749935436542,-460.0,0.00022191,4]
[365817497,1749935436551,-1400.91,0.00022191,4]
[365817498,1749935436559,-460.0,0.00022191,4]
[365817499,1749935436569,-460.0,0.00022191,4]
[365817500,1749935436578,-460.0,0.00022191,4]
[365817501,1749935436587,-440.0,0.00022191,4]
[365817502,1749935436596,-460.0,0.00022191,4]
[365817503,1749935436605,-3378.07,0.00022191,4]
[365817504,1749935436615,-460.0,0.00022191,4]
[365817505,1749935436624,-521.68,0.00022191,4]
[365817506,1749935436633,-310.0,0.00022191,4]
[365817507,1749935436642,-460.0,0.00022191,4]
[365817508,1749935436655,-460.0,0.00022191,4]
[365817509,1749935436663,-500.0,0.00022191,4]
[365817510,1749935436673,-768.84,0.00022191,4]
[365817511,1749935436682,-460.0,0.00022191,4]
[365817512,1749935436692,-1373.01,0.00022191,4]
[365817513,1749935436702,-460.0,0.00022191,4]
[365817514,1749935436712,-460.0,0.00022191,4]
[365817515,1749935436721,-460.0,0.00022191,4]
[365817516,1749935436735,-460.0,0.00022191,4]
[365817517,1749935436745,-460.0,0.00022191,4]
[365817518,1749935436754,-460.0,0.00022191,4]
[365817519,1749935436763,-460.0,0.00022191,4]
[365817520,1749935436772,-460.0,0.00022191,4]
[365817521,1749935436782,-460.0,0.00022191,4]
[365817522,1749935436791,-460.0,0.00022191,4]
[365817523,1749935436800,-1100.99,0.00022191,4]
[365817524,1749935436809,-460.0,0.00022191,4]
[365817525,1749935436819,-495.07902458,0.00022191,4]
[365817526,1749935436829,-230.0,0.00022191,4]
[365817527,1749935436838,-460.0,0.00022191,4]
[365817528,1749935436847,-460.0,0.00022191,4]
[365817529,1749935436856,-421.3213603,0.00022191,4]
[365817530,1749935436866,-460.0,0.00022191,4]
[365817531,1749935436875,-1006.56,0.00022191,4]
[365817532,1749935436884,-460.0,0.00022191,4]
[365817533,1749935436893,-460.0,0.00022191,4]
[365817534,1749935436903,-886.4,0.00022191,4]
[365817535,1749935436912,-460.0,0.00022191,4]
[365817536,1749935436921,-460.0,0.00022191,4]
[365817537,1749935436931,-460.0,0.00022191,4]
[365817538,1749935436941,-1001.86,0.00022191,4]
[365817539,1749935436950,-460.0,0.00022191,4]
[365817540,1749935436959,-3137.34,0.00022191,4]
[365817541,1749935436969,-460.0,0.00022191,4]
[365817542,1749935436979,-460.0,0.00022191,4]
[365817543,1749935436990,-3348.27,0.00022191,4]
[365817544,1749935437000,-636.1,0.00022191,4]
[365817545,1749935437009,-1209.67,0.00022191,4]
[365817546,1749935437019,-460.0,0.00022191,4]
[365817547,1749935437028,-814.04,0.00022191,4]
[365817548,1749935437038,-460.0,0.00022191,4]
[365817549,1749935437048,-2511.11,0.00022191,4]
[365817550,1749935437058,-3408.26,0.00022191,4]
[365817551,1749935437067,-460.0,0.00022191,4]
[365817552,1749935437078,-460.0,0.00022191,4]
[365817553,1749935437087,-460.0,0.00022191,4]
[365817554,1749935437096,-294.41680277,0.00022191,4]
[365817555,1749935437106,-3586.31,0.00022191,4]
[365817556,1749935437116,-524.24,0.00022191,4]
[365817557,1749935437125,-460.0,0.00022191,4]
[365817558,1749935437135,-1361.9,0.00022191,4]
[365817559,1749935437144,-460.0,0.00022191,4]
[365817560,1749935437154,-776.91,0.00022191,4]
[365817561,1749935437164,-460.0,0.00022191,4]
[365817562,1749935437173,-460.0,0.00022191,4]
[365817563,1749935437183,-3766.7,0.00022191,4]
[365817564,1749935437192,-460.0,0.00022191,2]
[365817565,1749935437201,-460.0,0.00022191,4]
[365817566,1749935437211,-572.14,0.00022191,4]
[365817567,1749935437220,-460.0,0.00022191,4]
[365817568,1749935437230,-460.0,0.00022191,4]
[365817569,1749935437239,-225.38559004,0.00022191,4]
[365817570,1749935437248,-460.0,0.00022191,4]
[365817571,1749935437258,-460.0,0.00022191,4]
[365817572,1749935437267,-460.0,0.00022191,4]
[365817573,1749935437278,-2251.75,0.00022191,4]
[365817574,1749935437287,-460.0,0.00022191,4]
[365817575,1749935437296,-460.0,0.00022191,4]
[365817576,1749935437306,-330.0,0.00022191,4]
[365817577,1749935437315,-460.0,0.00022191,4]
[365817578,1749935437325,-270.48538673,0.00022191,4]
[365817579,1749935437334,-1606.22,0.00022191,4]
[365817580,1749935437343,-460.0,0.00022191,4]
[365817581,1749935437353,-2303.18,0.00022191,4]
[365817582,1749935437362,-460.0,0.00022191,4]
[365817583,1749935437371,-612.26,0.00022191,4]
[365817584,1749935437381,-466.36,0.00022191,4]
[365817585,1749935437390,-460.0,0.00022191,4]
[365817586,1749935437399,-460.0,0.00022191,4]
[365817588,1749935437409,-894.72218881,0.0002221,6]
[365817589,1749935437418,-786.0,0.00022218,4]
[365817590,1749935437427,-500.0,0.00022218,4]
[365817591,1749935437437,-500.0,0.00022218,4]
[365817592,1749935437447,-500.0,0.00022218,4]
[365817593,1749935437457,-786.0,0.00022246,4]
[365817594,1749935437466,-500.0,0.00022246,4]
[365817595,1749935437476,-500.0,0.00022246,4]
[365817596,1749935437485,-464.0,0.00022246,4]
[365817597,1749935437494,-500.0,0.0002225,2]
[365817598,1749935437504,-786.0,0.00022273,4]
[365817600,1749935437513,-500.0,0.00022273,4]
[365817602,1749935437522,-786.0,0.00022301,4]
[365817603,1749935437531,-500.0,0.00022301,4]
[365817604,1749935437540,-894.72218881,0.00022314,7]
[365817605,1749935437550,-786.0,0.00022328,4]
[365817606,1749935437559,-500.0,0.00022328,4]
[365817608,1749935437570,-786.0,0.00022355,4]
[365817609,1749935437579,-500.0,0.00022355,4]
[365817610,1749935437589,-4434.63758628,0.00022365,2]
[365817611,1749935437598,-500.0,0.0002238,2]
[365817612,1749935437608,-786.0,0.00022383,4]
[365817613,1749935437618,-500.0,0.00022383,4]
[365817615,1749935437628,-786.0,0.0002241,4]
[365817617,1749935437638,-291.21606054,0.0002241,4]
[365817619,1749935437647,-894.72218881,0.00022417,7]
[365817620,1749935437662,-153.85728298,0.00022433,2]
[365817621,1749935437672,-157.51925231,0.00022436,2]
[365817622,1749935437681,-786.0,0.00022438,4]
[365817623,1749935437691,-786.0,0.00022465,4]
[365817624,1749935437702,-460.0,0.00022465,4]
[365817625,1749935437711,-460.0,0.00022465,4]
[365817626,1749935437721,-460.0,0.00022465,4]
[365817627,1749935437733,-460.0,0.00022465,4]
[365817628,1749935437743,-460.0,0.00022465,4]
[365817629,1749935437753,-679.55,0.00022465,4]
[365817630,1749935437762,-460.0,0.00022465,4]
[365817631,1749935437772,-542.82,0.00022465,4]
[365817632,1749935437782,-460.0,0.00022465,4]
[365817633,1749935437793,-460.0,0.00022465,4]
[365817634,1749935437803,-460.0,0.00022465,4]
[365817635,1749935437812,-151.83135684,0.00022465,4]
[365817636,1749935437823,-562.43,0.00022465,4]
[365817637,1749935437833,-460.0,0.00022465,4]
[365817638,1749935437842,-460.0,0.00022465,4]
[365817639,1749935437852,-460.0,0.00022465,4]
[365817640,1749935437861,-460.0,0.00022465,4]
[365817641,1749935437870,-460.0,0.00022465,4]
[365817642,1749935437880,-460.0,0.00022465,4]
[365817643,1749935437889,-460.0,0.00022465,4]
[365817644,1749935437898,-420.0,0.00022465,4]
[365817645,1749935437908,-460.0,0.00022465,4]
[365817646,1749935437917,-400.0,0.00022465,4]
[365817648,1749935437932,-460.0,0.00022465,4]
[365817650,1749935437941,-460.0,0.00022465,4]
[365817652,1749935437951,-460.0,0.00022465,4]
[365817653,1749935437960,-460.0,0.00022465,4]
[365817654,1749935437969,-350.0,0.00022465,4]
[365817655,1749935437979,-460.0,0.00022465,4]
[365817656,1749935437989,-1560.62,0.00022465,4]
[365817657,1749935437999,-460.0,0.00022465,4]
[365817658,1749935438009,-460.0,0.00022465,4]
[365817659,1749935438018,-497.88,0.00022465,4]
[365817660,1749935438027,-460.0,0.00022465,4]
[365817661,1749935438037,-420.0,0.00022465,4]
[365817662,1749935438050,-460.0,0.00022465,4]
[365817663,1749935438060,-460.0,0.00022465,4]
[365817664,1749935438069,-460.0,0.00022465,4]
[365817665,1749935438079,-511.51,0.00022465,4]
[365817666,1749935438088,-1151.42,0.00022465,4]
[365817667,1749935438097,-460.0,0.00022465,4]
[365817668,1749935438107,-460.0,0.00022465,4]
[365817669,1749935438116,-1606.54,0.00022465,4]
[365817670,1749935438125,-460.0,0.00022465,4]
[365817671,1749935438135,-460.0,0.00022465,4]
[365817672,1749935438144,-280.95216294,0.00022465,4]
[365817673,1749935438153,-460.0,0.00022465,4]
[365817674,1749935438163,-460.0,0.00022465,4]
[365817675,1749935438173,-182.40805665,0.00022465,4]
[365817676,1749935438182,-1137.27,0.00022465,4]
[365817677,1749935438195,-460.0,0.00022465,4]
[365817678,1749935438205,-1400.91,0.00022465,4]
[365817679,1749935438214,-460.0,0.00022465,4]
[365817680,1749935438223,-460.0,0.00022465,4]
[365817681,1749935438233,-460.0,0.00022465,4]
[365817682,1749935438243,-460.0,0.00022465,4]
[365817683,1749935438254,-3378.07,0.00022465,4]
[365817684,1749935438265,-230.0,0.00022465,4]
[365817685,1749935438275,-521.68,0.00022465,4]
[365817686,1749935438284,-163.22731964,0.00022465,4]
[365817687,1749935438293,-460.0,0.00022465,4]
[365817688,1749935438303,-500.0,0.00022465,4]
[365817689,1749935438312,-768.84,0.00022465,4]
[365817690,1749935438322,-460.0,0.00022465,4]
[365817691,1749935438331,-1373.01,0.00022465,4]
[365817692,1749935438341,-240.00228231,0.00022465,4]
[365817693,1749935438465,-219.99771769,0.00022465,4]
[365817694,1749935438475,-460.0,0.00022465,4]
[365817695,1749935438484,-460.0,0.00022465,4]
[365817696,1749935438493,-162.65955834,0.00022465,4]
[365817697,1749935438502,-460.0,0.00022465,4]
[365817698,1749935438512,-460.0,0.00022465,4]
[365817699,1749935438521,-233.2,0.00022465,4]
[365817700,1749935438530,-390.0,0.00022465,4]
[365817701,1749935438540,-460.0,0.00022465,4]
[365817702,1749935438660,-157.12048173,0.00022465,4]
[365817703,1749935438670,-1100.99,0.00022465,4]
[365817704,1749935438679,-460.0,0.00022465,4]
[365817705,1749935438689,-390.0,0.00022465,4]
[365817706,1749935438699,-460.0,0.00022465,4]
[365817707,1749935438708,-460.0,0.00022465,4]
[365817708,1749935438718,-1006.56,0.00022465,4]
[365817709,1749935438729,-460.0,0.00022465,4]
[365817710,1749935438739,-360.0,0.00022465,4]
[365817711,1749935438748,-886.4,0.00022465,4]
[365817712,1749935438757,-460.0,0.00022465,4]
[365817713,1749935438767,-400.0,0.00022465,4]
[365817714,1749935438776,-460.0,0.00022465,4]
[365817715,1749935438785,-1001.86,0.00022465,4]
[365817716,1749935438795,-460.0,0.00022465,4]
[365817717,1749935438804,-2714.940958,0.00022465,4]
[365817718,1749935439101,-422.399042,0.00022465,4]
[365817719,1749935439110,-460.0,0.00022465,4]
[365817720,1749935439119,-330.80122827,0.00022465,4]
[365817721,1749935439129,-1981.5523217,0.00022465,4]
[365817722,1749935439140,-1366.7176783,0.00022465,4]
[365817723,1749935439149,-133.87220358,0.00022465,4]
[365817724,1749935439164,-502.22779642,0.00022465,4]
[365817725,1749935439174,-1209.67,0.00022465,4]
[365817726,1749935439183,-460.0,0.00022465,4]
[365817727,1749935439192,-814.04,0.00022465,4]
[365817728,1749935439201,-460.0,0.00022465,4]
[365817729,1749935439211,-2511.11,0.00022465,4]
[365817730,1749935439219,-3408.26,0.00022465,4]
[365817731,1749935439229,-390.0,0.00022465,4]
[365817732,1749935439238,-460.0,0.00022465,4]
[365817733,1749935439247,-179.57314598,0.00022465,4]
[365817734,1749935439257,-3586.31,0.00022465,4]
[365817735,1749935439266,-524.24,0.00022465,4]
[365817736,1749935439275,-460.0,0.00022465,4]
[365817737,1749935439284,-1361.9,0.00022465,4]
[365817738,1749935439294,-460.0,0.00022465,4]
[365817739,1749935439304,-776.91,0.00022465,4]
[365817740,1749935439313,-460.0,0.00022465,4]
[365817741,1749935439323,-460.0,0.00022465,4]
[365817742,1749935439332,-3766.7,0.00022465,4]
[365817743,1749935439341,-460.0,0.00022465,2]
[365817745,1749935439351,-474.46198256,0.00022465,4]
[365817747,1749935439360,-572.14,0.00022465,4]
[365817749,1749935439369,-460.0,0.00022465,4]
[365817751,1749935439379,-460.0,0.00022465,4]
[365817753,1749935439387,-460.0,0.00022465,4]
[365817754,1749935439396,-460.0,0.00022465,4]
[365817756,1749935439406,-460.0,0.00022465,4]
[365817758,1749935439415,-2251.75,0.00022465,4]
[365817760,1749935439425,-460.0,0.00022465,4]
[365817761,1749935439434,-376.91681944,0.00022465,4]
[365817762,1749935439443,-460.0,0.00022465,4]
[365817763,1749935439452,-1606.22,0.00022465,4]
[365817764,1749935439461,-330.0,0.00022465,4]
[365817765,1749935439470,-2303.18,0.00022465,4]
[365817766,1749935439479,-460.0,0.00022465,4]
[365817767,1749935439488,-612.26,0.00022465,4]
[365817768,1749935439498,-466.36,0.00022465,4]
[365817769,1749935439507,-460.0,0.00022465,4]
[365817771,1749935439516,-460.0,0.00022465,4]
[365817773,1749935439525,-316.9201482,0.00022473,2]
[365817775,1749935439534,-500.0,0.00022473,2]
[365817777,1749935439543,-500.0,0.00022473,2]
[365817779,1749935439552,-786.0,0.00022492,4]
[365817781,1749935439561,-786.0,0.0002252,4]
[365817783,1749935439570,-894.72218881,0.00022521,7]
[365817784,1749935439580,-798.70319592,0.00022547,4]
[365817786,1749935439589,-12533.30537164,0.00022555,2]
[365817788,1749935439598,-835.41710878,0.00022555,2]
[365817790,1749935439607,-160.0,0.00022555,2]
[365817792,1749935439617,-160.0,0.00022555,2]
[365817794,1749935439626,-424.40141186,0.00022555,2]
[365817796,1749935439635,-845.10789306,0.00022555,2]
[365817798,1749935439645,-229.82479369,0.00022555,2]
[365817800,1749935439658,-213.28201367,0.00022555,2]
[365817802,1749935439667,-894.72218881,0.00022624,7]
[365817804,1749935439676,-207.4,0.00022726,2]
[365817806,1749935439685,-5000.0,0.00022726,2]
[365817808,1749935439695,-894.72218881,0.00022728,7]
[365817809,1749935439704,-460.0,0.00022739,4]
[365817811,1749935439713,-460.0,0.00022739,4]
[365817813,1749935439722,-460.0,0.00022739,4]
[365817815,1749935439733,-460.0,0.00022739,4]
[365817817,1749935439743,-460.0,0.00022739,4]
[365817819,1749935439752,-679.55,0.00022739,4]
[365817821,1749935439761,-460.0,0.00022739,4]
[365817823,1749935439771,-542.82,0.00022739,4]
[365817825,1749935439780,-177.62072255,0.00022739,4]
[365817827,1749935439790,-460.0,0.00022739,4]
[365817830,1749935439799,-460.0,0.00022739,4]
[365817833,1749935439808,-460.0,0.00022739,4]
[365817835,1749935439818,-460.0,0.00022739,4]
[365817836,1749935439829,-460.0,0.00022739,4]
[365817837,1749935439839,-460.0,0.00022739,4]
[365817838,1749935439848,-460.0,0.00022739,4]
[365817840,1749935439858,-460.0,0.00022739,4]
[365817842,1749935439867,-460.0,0.00022739,4]
[365817844,1749935439876,-460.0,0.00022739,4]
[365817846,1749935439886,-460.0,0.00022739,4]
[365817848,1749935439895,-350.0,0.00022739,4]
[365817850,1749935439905,-460.0,0.00022739,4]
[365817852,1749935439914,-539.340788,0.00022739,4]
[365817854,1749935439923,-460.0,0.00022739,4]
[365817856,1749935439933,-1560.62,0.00022739,4]
[365817858,1749935439943,-460.0,0.00022739,4]
[365817860,1749935439952,-460.0,0.00022739,4]
[365817862,1749935439962,-497.88,0.00022739,4]
[365817864,1749935439972,-460.0,0.00022739,4]
[365817866,1749935439981,-460.0,0.00022739,4]
[365817868,1749935439991,-550.0,0.00022739,4]
[365817870,1749935440000,-460.0,0.00022739,4]
[365817872,1749935440009,-511.51,0.00022739,4]
[365817874,1749935440019,-460.0,0.00022739,4]
[365817876,1749935440028,-460.0,0.00022739,4]
[365817878,1749935440038,-1606.54,0.00022739,4]
[365817880,1749935440048,-460.0,0.00022739,4]
[365817882,1749935440061,-460.0,0.00022739,4]
[365817884,1749935440071,-460.0,0.00022739,4]
[365817887,1749935440082,-1137.27,0.00022739,4]
[365817889,1749935440091,-460.0,0.00022739,4]
[365817891,1749935440100,-1400.91,0.00022739,4]
[365817893,1749935440109,-460.0,0.00022739,4]
[365817895,1749935440118,-460.0,0.00022739,4]
[365817897,1749935440127,-460.0,0.00022739,4]
[365817899,1749935440137,-460.0,0.00022739,4]
[365817901,1749935440147,-3378.07,0.00022739,4]
[365817903,1749935440156,-521.68,0.00022739,4]
[365817904,1749935440165,-460.0,0.00022739,4]
[365817906,1749935440174,-768.84,0.00022739,4]
[365817907,1749935440184,-460.0,0.00022739,4]
[365817909,1749935440193,-1373.01,0.00022739,4]
[365817911,1749935440203,-460.0,0.00022739,4]
[365817913,1749935440213,-460.0,0.00022739,4]
[365817915,1749935440222,-460.0,0.00022739,4]
[365817917,1749935440232,-517.65,0.00022739,4]
[365817919,1749935440241,-276.70651187,0.00022739,4]
[365817921,1749935440252,-460.0,0.00022739,4]
[365817923,1749935440261,-1100.99,0.00022739,4]
[365817925,1749935440270,-460.0,0.00022739,4]
[365817927,1749935440279,-460.0,0.00022739,4]
[365817929,1749935440288,-460.0,0.00022739,4]
[365817931,1749935440297,-1006.56,0.00022739,4]
[365817933,1749935440307,-460.0,0.00022739,4]
[365817936,1749935440316,-886.4,0.00022739,4]
[365817937,1749935440326,-460.0,0.00022739,4]
[365817940,1749935440335,-440.80421666,0.00022739,4]
[365817941,1749935440345,-1001.86,0.00022739,4]
[365817943,1749935440354,-380.0,0.00022739,4]
[365817945,1749935440363,-3137.34,0.00022739,4]
[365817947,1749935440373,-460.0,0.00022739,4]
[365817949,1749935440382,-3348.27,0.00022739,4]
[365817951,1749935440391,-636.1,0.00022739,4]
[365817953,1749935440402,-1209.67,0.00022739,4]
[365817956,1749935440411,-460.0,0.00022739,4]
[365817957,1749935440420,-814.04,0.00022739,4]
[365817959,1749935440429,-460.0,0.00022739,4]
[365817961,1749935440439,-2511.11,0.00022739,4]
[365817963,1749935440449,-3408.26,0.00022739,4]
[365817965,1749935440458,-460.0,0.00022739,4]
[365817967,1749935440474,-3586.31,0.00022739,4]
[365817969,1749935440483,-524.24,0.00022739,4]
[365817971,1749935440492,-360.0,0.00022739,4]
[365817973,1749935440502,-1361.9,0.00022739,4]
[365817975,1749935440511,-460.0,0.00022739,4]
[365817977,1749935440520,-776.91,0.00022739,4]
[365817979,1749935440530,-460.0,0.00022739,4]
[365817981,1749935440539,-460.0,0.00022739,4]
[365817982,1749935440548,-3766.7,0.00022739,4]
[365817983,1749935440557,-460.0,0.00022739,2]
[365817984,1749935440567,-572.14,0.00022739,4]
[365817985,1749935440577,-460.0,0.00022739,4]
[365817986,1749935440587,-460.0,0.00022739,4]
[365817987,1749935440596,-460.0,0.00022739,4]
[365817988,1749935440605,-460.0,0.00022739,4]
[365817989,1749935440615,-460.0,0.00022739,4]
[365817990,1749935440624,-2251.75,0.00022739,4]
[365817991,1749935440634,-380.0,0.00022739,4]
[365817992,1749935440644,-460.0,0.00022739,4]
[365817993,1749935440659,-1606.22,0.00022739,4]
[365817994,1749935440670,-2303.18,0.00022739,4]
[365817995,1749935440679,-460.0,0.00022739,4]
[365817996,1749935440688,-466.36,0.00022739,4]
[365817997,1749935440700,-511.26353395,0.00022739,4]
[365817998,1749935440709,-340.0,0.00022739,4]
[365817999,1749935440719,-612.26,0.00022739,4]
[365818000,1749935440728,-507.66297015,0.00022773,2]
[365818001,1749935440739,-500.0,0.00022773,2]
[365818002,1749935440749,-500.0,0.00022773,2]
[365818003,1749935440758,-168.0,0.00022816,2]
[365818004,1749935440767,-894.72218881,0.00022831,8]
[365818005,1749935440775,-425.09696969,0.00022849,2]
[365818006,1749935440784,-157.51925231,0.00022891,2]
[365818007,1749935440793,-1000.0,0.00022928,2]
[365818008,1749935440802,-894.72218881,0.00022934,8]
[365818009,1749935440811,-2556.39,0.00022952,2]
[365818010,1749935440820,-420.0,0.00023006,2]
[365818011,1749935440830,-588.91941051,0.00023013,4]
[365818012,1749935440839,-345.51378918,0.00023013,4]
[365818013,1749935440847,-460.0,0.00023013,4]
[365818014,1749935440856,-340.7707812,0.00023013,4]
[365818015,1749935440866,-360.0,0.00023013,4]
[365818016,1749935440875,-679.55,0.00023013,4]
[365818017,1749935440884,-360.0,0.00023013,4]
[365818018,1749935440893,-542.82,0.00023013,4]
[365818019,1749935440902,-550.0,0.00023013,4]
[365818020,1749935440911,-360.0,0.00023013,4]
[365818021,1749935440922,-191.45913133,0.00023013,4]
[365818023,1749935440931,-460.0,0.00023013,4]
[365818024,1749935440939,-460.0,0.00023013,4]
[365818025,1749935440948,-460.0,0.00023013,4]
[365818027,1749935440958,-460.0,0.00023013,4]
[365818029,1749935440967,-460.0,0.00023013,4]
[365818031,1749935440976,-460.0,0.00023013,4]
[365818032,1749935440985,-460.0,0.00023013,4]
[365818035,1749935440995,-460.0,0.00023013,4]
[365818037,1749935441004,-460.0,0.00023013,4]
[365818039,1749935441013,-460.0,0.00023013,4]
[365818040,1749935441022,-1560.62,0.00023013,4]
[365818042,1749935441031,-460.0,0.00023013,4]
[365818045,1749935441041,-505.31676408,0.00023013,4]
[365818046,1749935441053,-497.88,0.00023013,4]
[365818048,1749935441063,-460.0,0.00023013,4]
[365818050,1749935441072,-460.0,0.00023013,4]
[365818052,1749935441084,-460.0,0.00023013,4]
[365818054,1749935441094,-511.51,0.00023013,4]
[365818056,1749935441104,-460.0,0.00023013,4]
[365818059,1749935441113,-460.0,0.00023013,4]
[365818061,1749935441123,-1606.54,0.00023013,4]
[365818063,1749935441133,-460.0,0.00023013,4]
[365818064,1749935441142,-460.0,0.00023013,4]
[365818065,1749935441152,-460.0,0.00023013,4]
[365818066,1749935441162,-1137.27,0.00023013,4]
[365818067,1749935441171,-460.0,0.00023013,4]
[365818068,1749935441181,-1400.91,0.00023013,4]
[365818069,1749935441190,-460.0,0.00023013,4]
[365818070,1749935441199,-460.0,0.00023013,4]
[365818071,1749935441209,-460.0,0.00023013,4]
[365818072,1749935441218,-460.0,0.00023013,4]
[365818073,1749935441228,-3378.07,0.00023013,4]
[365818074,1749935441238,-521.68,0.00023013,4]
[365818075,1749935441247,-460.0,0.00023013,4]
[365818076,1749935441257,-768.84,0.00023013,4]
[365818077,1749935441267,-460.0,0.00023013,4]
[365818078,1749935441277,-1373.01,0.00023013,4]
[365818080,1749935441390,-460.0,0.00023013,4]
[365818081,1749935441400,-460.0,0.00023013,4]
[365818082,1749935441409,-440.0,0.00023013,4]
[365818083,1749935441419,-460.0,0.00023013,4]
[365818084,1749935441429,-1100.99,0.00023013,4]
[365818085,1749935441438,-460.0,0.00023013,4]
[365818086,1749935441447,-460.0,0.00023013,4]
[365818087,1749935441456,-400.0,0.00023013,4]
[365818088,1749935441465,-1006.56,0.00023013,4]
[365818089,1749935441474,-460.0,0.00023013,4]
[365818090,1749935441483,-886.4,0.00023013,4]
[365818091,1749935441492,-460.0,0.00023013,4]
[365818092,1749935441502,-1001.86,0.00023013,4]
[365818093,1749935441511,-3137.34,0.00023013,4]
[365818094,1749935441520,-460.0,0.00023013,4]
[365818095,1749935441530,-3348.27,0.00023013,4]
[365818096,1749935441539,-636.1,0.00023013,4]
[365818097,1749935441549,-1209.67,0.00023013,4]
[365818098,1749935441558,-460.0,0.00023013,4]
[365818099,1749935441568,-814.04,0.00023013,4]
[365818100,1749935441578,-460.0,0.00023013,4]
[365818101,1749935441588,-2511.11,0.00023013,4]
[365818102,1749935441598,-3408.26,0.00023013,4]
[365818103,1749935441608,-360.0,0.00023013,4]
[365818104,1749935441617,-3586.31,0.00023013,4]
[365818105,1749935441627,-524.24,0.00023013,4]
[365818106,1749935441638,-1361.9,0.00023013,4]
[365818107,1749935441647,-460.0,0.00023013,4]
[365818108,1749935441661,-776.91,0.00023013,4]
[365818109,1749935441671,-460.0,0.00023013,4]
[365818110,1749935441680,-3766.7,0.00023013,4]
[365818111,1749935441690,-460.0,0.00023013,2]
[365818112,1749935441701,-460.0,0.00023013,4]
[365818113,1749935441712,-572.14,0.00023013,4]
[365818114,1749935441722,-330.0,0.00023013,4]
[365818115,1749935441734,-460.0,0.00023013,4]
[365818116,1749935441744,-460.0,0.00023013,4]
[365818117,1749935441755,-460.0,0.00023013,4]
[365818118,1749935441765,-460.0,0.00023013,4]
[365818120,1749935441775,-2251.75,0.00023013,4]
[365818121,1749935441784,-460.0,0.00023013,4]
[365818122,1749935441794,-1606.22,0.00023013,4]
[365818123,1749935441803,-2303.18,0.00023013,4]
[365818124,1749935441813,-460.0,0.00023013,4]
[365818125,1749935441823,-466.36,0.00023013,4]
[365818126,1749935441835,-612.26,0.00023013,4]